bitfinex/quotes_BTCUSD_20250225
["timestamp","ask_amount","ask_price","bid_price","bid_amount"]
[1740508169323,0.50385001,87170.0,87169.0,0.0008895]
[1740508169545,0.50385001,87170.0,87169.0,0.0028895]
[1740508172212,0.49507631,87170.0,87169.0,0.0028895]
[1740508172391,0.19507631,87170.0,87169.0,0.0028895]
[1740508173733,0.1737774,87170.0,87169.0,0.0028895]
[1740508176039,0.0017004,87170.0,87169.0,0.0028895]
[1740508176284,0.1737774,87170.0,87169.0,0.0028895]
[1740508176713,0.18220132,87170.0,87169.0,0.0028895]
[1740508180269,0.48220132,87170.0,87169.0,0.0028895]
[1740508184829,0.47863332,87170.0,87169.0,0.0028895]
[1740508186788,0.47863332,87170.0,87155.0,0.0008479]
[1740508186789,0.472105,87156.0,87155.0,9e-07]
[1740508186986,0.172134,87141.0,87140.0,0.01064602]
[1740508187167,0.172154,87131.0,87130.0,0.078]
[1740508187598,0.172156,87130.0,87129.0,0.0483]
[1740508188560,0.01894935,87130.0,87129.0,0.0483]
[1740508188769,0.19110535,87130.0,87129.0,0.0483]
[1740508188972,0.344162,87168.0,87129.0,0.0543]
[1740508189085,0.001,87130.0,87129.0,0.31899885]
[1740508189290,0.001,87130.0,87129.0,0.85305798]
[1740508189524,0.01883584,87168.0,87135.0,0.01454085]
[1740508189727,0.229493,87149.0,87134.0,0.078]
[1740508189930,0.172133,87142.0,87134.0,0.078]
[1740508190133,0.172131,87143.0,87135.0,0.02959111]
[1740508190306,0.22946,87161.0,87135.0,0.02959111]
[1740508190650,0.3,87160.0,87135.0,0.02959111]
[1740508190947,0.3,87160.0,87142.0,0.172132]
[1740508191155,0.172117,87150.0,87143.0,0.0822]
[1740508191367,0.3,87160.0,87144.0,0.03587692]
[1740508191563,0.172117,87150.0,87144.0,0.03487692]
[1740508191763,0.3,87165.0,87144.0,0.03487692]
[1740508191991,0.172116,87151.0,87144.0,0.03487692]
[1740508192196,0.10142369,87166.0,87145.0,0.04560927]
[1740508192338,0.10142369,87166.0,87146.0,0.0463]
[1740508192537,0.172122,87147.0,87146.0,0.0463]
[1740508192741,0.229502,87146.0,87134.0,0.5829]
[1740508192949,0.172146,87135.0,87134.0,0.0463]
[1740508193542,0.229526,87137.0,87131.0,0.0822]
[1740508193751,0.172152,87132.0,87131.0,0.0822]
[1740508193954,0.22951,87142.0,87131.0,0.04081477]
[1740508194199,0.172152,87132.0,87131.0,0.04081477]
[1740508194576,0.172152,87132.0,87129.0,0.0008477]
[1740508194774,0.172156,87130.0,87129.0,0.0008477]
[1740508194977,0.19182309,87130.0,87129.0,0.0008477]
[1740508196465,0.19282309,87130.0,87129.0,0.0048477]
[1740508198005,0.001,87130.0,87129.0,0.0048477]
[1740508198513,0.001,87130.0,87129.0,0.02254927]
[1740508198654,0.001,87130.0,87129.0,0.1770057]
[1740508199228,0.001,87130.0,87129.0,0.0048477]
[1740508199439,0.001,87130.0,87129.0,0.1770057]
[1740508200403,0.001,87130.0,87129.0,0.63151235]
[1740508200599,0.01026407,87172.0,87156.0,0.0796]
[1740508200805,0.229434,87171.0,87157.0,0.0482]
[1740508200940,0.229434,87171.0,87138.0,0.09182789]
[1740508200941,0.12079569,87170.0,87144.0,0.011]
[1740508201281,0.229499,87147.0,87144.0,0.0818]
[1740508201462,0.172126,87145.0,87144.0,0.0818]
[1740508201635,0.172126,87145.0,87137.0,0.497242]
[1740508201636,0.17214,87138.0,87137.0,0.3251]
[1740508201837,0.01966645,87138.0,87137.0,0.3241]
[1740508202085,0.17214,87139.0,87137.0,0.3241]
[1740508202414,0.00875266,87149.0,87129.0,0.0008477]
[1740508202619,0.01947208,87139.0,87129.0,0.0008477]
[1740508202846,0.001,87145.0,87129.0,0.0008477]
[1740508203061,0.01933159,87145.0,87130.0,0.32297548]
[1740508203234,0.229466,87159.0,87130.0,0.32297548]
[1740508203235,0.3,87169.0,87138.0,0.172139]
[1740508203434,0.172132,87143.0,87139.0,0.00160643]
[1740508203735,0.01942781,87145.0,87140.0,0.05018544]
[1740508204075,0.172132,87143.0,87140.0,0.05018544]
[1740508204425,0.17213,87144.0,87140.0,0.05018544]
[1740508204621,0.3016958,87174.0,87140.0,0.05018544]
[1740508204622,0.172105,87157.0,87141.0,0.3996]
[1740508204831,0.0016958,87174.0,87142.0,0.04513919]
[1740508205035,0.17213,87143.0,87142.0,0.04513919]
[1740508205813,0.172132,87142.0,87141.0,0.3996]
[1740508206012,0.172132,87142.0,87141.0,0.3241]
[1740508208283,0.001,87142.0,87141.0,0.502234]
[1740508208497,0.001,87142.0,87141.0,0.579934]
[1740508208650,0.229453,87164.0,87141.0,0.51565696]
[1740508208853,0.10142369,87186.0,87141.0,0.4018]
[1740508208854,0.229481,87153.0,87141.0,0.4018]
[1740508209061,0.3,87159.0,87141.0,0.4048]
[1740508209262,0.172106,87156.0,87147.0,0.172121]
[1740508209463,0.31942267,87159.0,87141.0,0.4048]
[1740508209658,0.17213,87143.0,87142.0,0.06351749]
[1740508209859,0.17211,87154.0,87142.0,0.06351749]
[1740508210163,0.10142369,87186.0,87144.0,0.0451]
[1740508210164,0.229409,87181.0,87144.0,0.0451]
[1740508210354,0.229439,87169.0,87158.0,0.172099]
[1740508210580,0.02082795,87170.0,87159.0,0.00160611]
[1740508210774,0.0016958,87170.0,87160.0,0.0832]
[1740508211087,0.172093,87162.0,87161.0,0.00832]
[1740508211286,0.0016958,87170.0,87161.0,0.00832]
[1740508211717,0.172088,87165.0,87161.0,0.00832]
[1740508211919,0.0016958,87170.0,87161.0,0.00832]
[1740508211920,0.172091,87164.0,87161.0,0.00832]
[1740508212092,0.172081,87168.0,87161.0,0.00832]
[1740508212329,0.172093,87162.0,87161.0,0.002]
[1740508212977,0.0016958,87170.0,87148.0,0.076]
[1740508213185,0.172093,87162.0,87161.0,0.007]
[1740508213699,0.472093,87162.0,87161.0,0.007]
[1740508214486,0.172117,87150.0,87143.0,0.5366]
[1740508214697,0.17212,87148.0,87147.0,0.11385696]
[1740508215270,0.229491,87150.0,87142.0,0.06351749]
[1740508215271,0.172122,87147.0,87142.0,0.06351749]
[1740508215623,0.001,87150.0,87147.0,0.229497]
[1740508215829,0.001,87150.0,87146.0,0.3301]
[1740508216038,0.229477,87155.0,87146.0,0.3241]
[1740508216367,0.172113,87152.0,87146.0,0.3241]
[1740508216560,0.001,87147.0,87146.0,0.3311]
[1740508217310,0.173122,87147.0,87146.0,0.3311]
[1740508217864,0.172134,87141.0,87130.0,0.3241]
[1740508218978,0.472134,87141.0,87140.0,9e-07]
[1740508219181,0.49163087,87141.0,87140.0,9e-07]
[1740508221395,0.49263087,87141.0,87140.0,9e-07]
[1740508221757,0.472156,87130.0,87112.0,0.0008482]
[1740508222116,0.19937716,87130.0,87112.0,0.0008482]
[1740508222340,0.172156,87130.0,87112.0,0.0008482]
[1740508223213,0.175156,87130.0,87112.0,0.0008482]
[1740508235883,0.003,87130.0,87129.0,0.2525057]
[1740508236085,0.003,87130.0,87129.0,0.39712886]
[1740508236684,0.003,87130.0,87129.0,0.22497086]
[1740508236893,0.003,87130.0,87129.0,0.39712886]
[1740508237097,0.172139,87139.0,87129.0,0.22497086]
[1740508237227,0.01949687,87141.0,87131.0,0.172154]
[1740508237433,0.229495,87148.0,87132.0,0.04130249]
[1740508237674,0.3,87147.0,87132.0,0.36540249]
[1740508237996,0.10142369,87152.0,87132.0,0.36540249]
[1740508237997,0.10142369,87152.0,87139.0,0.172138]
[1740508238246,0.10142369,87152.0,87138.0,0.09182789]
[1740508238435,0.10142369,87152.0,87141.0,0.1304]
[1740508238597,0.10142369,87152.0,87151.0,0.172115]
[1740508238798,0.10142369,87152.0,87151.0,0.59135585]
[1740508239003,0.10142369,87152.0,87151.0,0.64115585]
[1740508239246,0.01792579,87166.0,87151.0,0.4545]
[1740508239448,0.172098,87160.0,87151.0,0.4545]
[1740508239651,0.229458,87162.0,87152.0,0.28150379]
[1740508239855,0.229452,87164.0,87152.0,0.10939279]
[1740508240060,0.172093,87162.0,87152.0,0.10939279]
[1740508240204,0.0016962,87165.0,87157.0,0.172101]
[1740508240420,0.1737832,87165.0,87155.0,0.229474]
[1740508240624,0.0016962,87165.0,87164.0,0.172089]
[1740508240849,0.0016962,87165.0,87164.0,0.63752985]
[1740508241056,0.03205858,87215.0,87183.0,0.253251]
[1740508241254,0.03205858,87215.0,87183.0,0.63649185]
[1740508241442,0.01811525,87203.0,87183.0,0.63649185]
[1740508241640,0.03205858,87215.0,87183.0,0.63649185]
[1740508241641,0.172027,87196.0,87183.0,0.63649185]
[1740508241846,0.01789215,87207.0,87183.0,0.63649185]
[1740508242043,0.229334,87209.0,87183.0,0.63649185]
[1740508242251,0.229322,87214.0,87183.0,0.63649185]
[1740508242464,0.229309,87219.0,87185.0,0.01454085]
[1740508242683,0.00861878,87229.0,87193.0,0.0778]
[1740508242861,0.172014,87203.0,87193.0,0.0778]
[1740508243062,0.1027126,87210.0,87194.0,0.3241]
[1740508243272,0.1027126,87210.0,87195.0,0.01454085]
[1740508243478,0.1027126,87210.0,87195.0,0.01354085]
[1740508243479,0.10261526,87210.0,87195.0,0.01354085]
[1740508243812,0.10261526,87210.0,87198.0,0.0454]
[1740508244132,0.10261526,87210.0,87202.0,0.09182789]
[1740508244333,0.229334,87209.0,87202.0,0.09182789]
[1740508244574,0.172,87209.0,87202.0,0.09182789]
[1740508244785,0.10261526,87210.0,87202.0,0.09182789]
[1740508244926,0.10261526,87210.0,87203.0,0.04613279]
[1740508245133,0.17201,87204.0,87203.0,0.04613279]
[1740508246190,0.229338,87208.0,87203.0,0.04613279]
[1740508246363,0.17201,87204.0,87203.0,0.04613279]
[1740508246556,0.172018,87200.0,87199.0,0.3241]
[1740508246958,0.172043,87187.0,87186.0,0.38965659]
[1740508247272,0.172043,87187.0,87186.0,0.3241]
[1740508248012,0.0465,87233.0,87186.0,0.3241]
[1740508248151,0.343913,87232.0,87186.0,0.3271]
[1740508248372,0.0999995,87239.0,87186.0,0.3271]
[1740508248373,0.3,87235.0,87187.0,0.04553]
[1740508248563,0.172039,87190.0,87187.0,0.36963]
[1740508248770,0.172032,87193.0,87187.0,0.36963]
[1740508249084,0.172022,87199.0,87187.0,0.541673]
[1740508249285,0.3,87204.0,87187.0,0.36963]
[1740508249529,0.172042,87188.0,87187.0,0.36963]
[1740508249731,0.172042,87188.0,87181.0,0.0485]
[1740508249732,0.172071,87173.0,87172.0,0.0793]
[1740508249930,0.229419,87177.0,87172.0,0.0793]
[1740508250143,0.172071,87173.0,87172.0,0.0793]
[1740508250882,0.229403,87183.0,87168.0,0.3241]
[1740508251065,0.0178405,87173.0,87169.0,0.04774917]
[1740508251241,0.172067,87176.0,87169.0,0.04774917]
[1740508251441,0.229391,87187.0,87169.0,0.04774917]
[1740508251442,0.229416,87178.0,87169.0,0.04774917]
[1740508251821,0.172069,87175.0,87169.0,0.04774917]
[1740508252025,0.3,87185.0,87170.0,0.04468409]
[1740508252235,0.17207,87174.0,87170.0,0.04468409]
[1740508252428,0.229405,87182.0,87170.0,0.04468409]
[1740508252633,0.3,87181.0,87170.0,0.04468409]
[1740508252834,0.229427,87174.0,87170.0,0.04468409]
[1740508253035,0.3,87181.0,87171.0,0.04437758]
[1740508253646,0.01805809,87187.0,87171.0,0.04437758]
[1740508253787,0.3,87186.0,87171.0,0.04437758]
[1740508253987,0.034491,87205.0,87172.0,4.983e-05]
[1740508254170,0.3,87184.0,87173.0,0.3241]
[1740508254377,0.01980382,87187.0,87174.0,0.04187332]
[1740508254580,0.172062,87178.0,87174.0,0.04187332]
[1740508254785,0.172062,87178.0,87174.0,0.36597332]
[1740508255007,0.172059,87179.0,87174.0,0.36597332]
[1740508255211,0.0016962,87187.0,87174.0,0.36597332]
[1740508255549,0.01903422,87187.0,87174.0,0.3241]
[1740508255753,0.229394,87186.0,87174.0,0.3241]
[1740508255909,0.01903422,87187.0,87174.0,0.3241]
[1740508256113,0.172067,87175.0,87174.0,0.3241]
[1740508256335,0.172067,87175.0,87174.0,0.36137]
[1740508257507,0.172067,87175.0,87174.0,0.3241]
[1740508258356,0.172067,87175.0,87174.0,0.32417983]
[1740508260031,0.172067,87175.0,87174.0,0.32517983]
[1740508260271,0.229384,87190.0,87174.0,0.00107983]
[1740508260480,0.3,87189.0,87174.0,7.983e-05]
[1740508260678,0.529388,87189.0,87175.0,0.02295138]
[1740508260881,0.3293,87208.0,87181.0,0.0789]
[1740508260882,0.0016962,87187.0,87181.0,0.0789]
[1740508261139,0.0016962,87187.0,87186.0,0.172045]
[1740508261288,0.0016962,87187.0,87186.0,0.00160544]
[1740508261511,0.1737392,87187.0,87186.0,0.05544933]
[1740508261686,0.1737392,87187.0,87186.0,0.05552916]
[1740508262209,0.0016962,87187.0,87186.0,0.05552916]
[1740508262563,0.0016962,87187.0,87186.0,0.55331979]
[1740508262777,0.0016962,87187.0,87186.0,0.55171416]
[1740508262980,0.0016962,87187.0,87186.0,0.56625501]
[1740508263533,0.034482,87232.0,87188.0,0.376]
[1740508263741,0.034482,87232.0,87203.0,0.0479]
[1740508263954,0.05226902,87232.0,87203.0,0.0479]
[1740508264152,0.31778702,87232.0,87203.0,0.05886]
[1740508264357,0.171991,87214.0,87204.0,0.013486]
[1740508264552,0.171977,87221.0,87205.0,0.3241]
[1740508264791,0.171972,87224.0,87206.0,0.01454085]
[1740508264942,0.02511254,87232.0,87209.0,0.172]
[1740508265148,0.02434119,87232.0,87210.0,0.32570496]
[1740508265387,0.171975,87222.0,87211.0,0.08904116]
[1740508265599,0.171973,87223.0,87211.0,0.08904116]
[1740508265831,0.229293,87225.0,87211.0,0.08904116]
[1740508266014,0.02434119,87232.0,87211.0,0.08904116]
[1740508266339,0.171992,87213.0,87212.0,7.983e-05]
[1740508268135,0.171992,87213.0,87212.0,0.00107983]
[1740508268334,0.171992,87213.0,87212.0,0.00111983]
[1740508269048,0.01738011,87232.0,87212.0,0.00111983]
[1740508269384,0.01358911,87232.0,87213.0,0.0756]
[1740508269658,0.3,87233.0,87214.0,0.04008198]
[1740508270081,0.01781737,87241.0,87215.0,0.0485]
[1740508270283,0.171963,87228.0,87216.0,0.05060564]
[1740508270486,0.171984,87217.0,87216.0,0.04908051]
[1740508271028,0.171981,87219.0,87216.0,0.04908051]
[1740508271281,0.3,87234.0,87217.0,0.05082805]
[1740508271483,0.229265,87235.0,87217.0,0.05082805]
[1740508271484,0.004,87228.0,87217.0,0.37492805]
[1740508271689,0.004,87228.0,87219.0,0.01454085]
[1740508271888,0.004,87228.0,87220.0,0.0786]
[1740508272091,0.004,87228.0,87225.0,0.01454085]
[1740508272299,0.004,87228.0,87226.0,0.00931409]
[1740508272716,0.01735928,87241.0,87226.0,0.00931409]
[1740508272717,0.229259,87238.0,87226.0,0.00939392]
[1740508272937,0.171965,87227.0,87226.0,0.00939392]
[1740508273149,0.171965,87227.0,87226.0,0.00839392]
[1740508274803,0.171965,87227.0,87226.0,7.983e-05]
[1740508276349,0.171965,87227.0,87226.0,0.00107983]
[1740508276716,0.171965,87227.0,87226.0,7.983e-05]
[1740508277847,0.1736602,87227.0,87226.0,0.00107983]
[1740508279308,0.1736602,87227.0,87226.0,7.983e-05]
[1740508279723,0.471992,87213.0,87192.0,0.0771]
[1740508279930,0.471992,87213.0,87191.0,0.3241]
[1740508280695,0.46551199,87213.0,87191.0,0.3241]
[1740508281100,0.172034,87192.0,87191.0,0.3241]
[1740508281313,0.172043,87187.0,87186.0,4e-05]
[1740508281631,0.172043,87187.0,87186.0,0.04024875]
[1740508282158,0.18935161,87187.0,87186.0,0.04024875]
[1740508283329,0.19035161,87187.0,87186.0,0.04024875]
[1740508283730,0.19035161,87187.0,87186.0,4e-05]
[1740508283938,0.49035161,87187.0,87186.0,4e-05]
[1740508284101,0.48935161,87187.0,87186.0,8e-05]
[1740508285496,0.49035161,87187.0,87186.0,8e-05]
[1740508286140,0.48935161,87187.0,87186.0,8e-05]
[1740508289833,0.48935161,87187.0,87186.0,0.0009272]
[1740508293720,0.60320857,87187.0,87186.0,0.0009272]
[1740508294179,0.48935161,87187.0,87186.0,2e-07]
[1740508294381,0.172111,87153.0,87152.0,0.3241]
[1740508294789,0.172115,87151.0,87150.0,4e-05]
[1740508295594,0.472115,87151.0,87150.0,4e-05]
[1740508296508,0.19024175,87151.0,87150.0,4e-05]
[1740508297402,0.3,87152.0,87140.0,0.31863142]
[1740508297608,0.172134,87141.0,87140.0,0.31863142]
[1740508298855,0.16897482,87135.0,87133.0,0.0464]
[1740508299058,0.172148,87134.0,87133.0,0.0464]
[1740508299485,0.229519,87139.0,87133.0,0.0464]
[1740508299687,0.01759473,87151.0,87134.0,0.01256477]
[1740508300095,0.22952,87139.0,87134.0,0.01256477]
[1740508300270,0.172142,87137.0,87134.0,0.01256477]
[1740508300503,0.172141,87138.0,87134.0,0.01256477]
[1740508300715,0.02226485,87151.0,87135.0,0.02300404]
[1740508300912,0.02226485,87151.0,87136.0,0.31863142]
[1740508301115,0.172142,87137.0,87136.0,0.31863142]
[1740508301318,0.172144,87136.0,87135.0,0.02300404]
[1740508301523,0.172146,87135.0,87134.0,0.01256477]
[1740508301971,0.172156,87130.0,87126.0,0.0803]
[1740508302180,0.172156,87130.0,87124.0,0.0008472]
[1740508302596,0.229534,87133.0,87124.0,0.0008472]
[1740508302813,0.172156,87130.0,87124.0,0.0008472]
[1740508303236,0.001,87130.0,87124.0,0.0008472]
[1740508303440,0.173156,87130.0,87124.0,0.0008472]
[1740508303648,0.173156,87130.0,87129.0,0.01494998]
[1740508304430,0.172156,87130.0,87129.0,0.01494998]
[1740508304654,0.173156,87130.0,87129.0,0.01494998]
[1740508304975,0.3,87150.0,87129.0,0.01494998]
[1740508305175,0.172156,87130.0,87129.0,0.01494998]
[1740508305394,0.172156,87130.0,87129.0,0.00943329]
[1740508305595,0.173156,87130.0,87129.0,0.00943329]
[1740508306000,0.172156,87130.0,87129.0,0.00943329]
[1740508306359,0.003,87150.0,87129.0,0.00943329]
[1740508306583,0.3,87148.0,87129.0,0.00943329]
[1740508306988,0.172146,87135.0,87129.0,0.00943329]
[1740508307304,0.3,87146.0,87132.0,0.0768]
[1740508307511,0.229444,87167.0,87134.0,0.09182789]
[1740508307723,0.172117,87150.0,87149.0,0.0466]
[1740508307957,0.00853424,87171.0,87135.0,0.0466]
[1740508307958,0.172144,87136.0,87135.0,0.0466]
[1740508308105,0.3,87158.0,87133.0,0.04231092]
[1740508308106,0.172148,87134.0,87133.0,0.04231092]
[1740508308306,0.034509,87157.0,87123.0,0.0768]
[1740508308488,0.172159,87129.0,87123.0,0.0768]
[1740508309152,0.172166,87125.0,87123.0,0.0768]
[1740508309345,0.172165,87126.0,87123.0,0.0768]
[1740508309658,0.172165,87126.0,87125.0,0.01352472]
[1740508309927,0.00868799,87142.0,87125.0,0.01352472]
[1740508310114,0.172164,87127.0,87125.0,0.01352472]
[1740508310420,0.788177,87170.0,87125.0,0.01352472]
[1740508310421,0.02255598,87130.0,87125.0,0.01352472]
[1740508310621,0.229483,87153.0,87126.0,0.0155485]
[1740508310818,0.172151,87133.0,87126.0,0.33417992]
[1740508311047,0.229529,87135.0,87126.0,0.33157329]
[1740508311220,0.229506,87144.0,87126.0,0.33157329]
[1740508311380,0.172158,87130.0,87127.0,0.06999452]
[1740508311581,0.17216,87128.0,87127.0,0.38862594]
[1740508312624,0.17216,87128.0,87127.0,0.39062594]
[1740508313175,0.17216,87128.0,87127.0,0.07199452]
[1740508313483,0.001,87130.0,87127.0,0.002]
[1740508313684,0.001,87130.0,87128.0,0.00160679]
[1740508313989,0.0999995,87174.0,87128.0,0.00160666]
[1740508314160,0.02194688,87147.0,87130.0,0.0774]
[1740508314369,0.172132,87143.0,87131.0,0.0505255]
[1740508314569,0.172123,87147.0,87133.0,0.17215]
[1740508314769,0.229455,87163.0,87132.0,0.31863142]
[1740508314770,0.172128,87145.0,87132.0,0.31863142]
[1740508314970,0.012942,87164.0,87133.0,0.229534]
[1740508315150,0.02192034,87178.0,87136.0,0.172142]
[1740508315365,0.02192034,87178.0,87131.0,0.0505255]
[1740508315366,0.229461,87161.0,87139.0,0.218936]
[1740508315569,0.1721,87159.0,87140.0,0.00160625]
[1740508315773,0.034501,87177.0,87141.0,0.01454085]
[1740508315949,0.3,87174.0,87141.0,0.01454085]
[1740508316318,0.172124,87146.0,87142.0,0.01096]
[1740508316491,0.30871969,87174.0,87142.0,0.01096]
[1740508316492,0.172128,87144.0,87143.0,0.37053034]
[1740508316854,0.229486,87152.0,87143.0,0.37053034]
[1740508317057,0.172114,87152.0,87143.0,0.37053034]
[1740508317235,0.3,87172.0,87147.0,0.09182789]
[1740508317435,0.00862381,87182.0,87156.0,0.09182789]
[1740508317642,0.229388,87189.0,87157.0,0.1314]
[1740508317847,0.0786,87222.0,87167.0,0.0815]
[1740508318043,0.034492,87204.0,87185.0,0.09182789]
[1740508318248,0.00870674,87223.0,87186.0,0.3301969]
[1740508318457,0.00140798,87212.0,87186.0,0.33777421]
[1740508318682,0.172043,87187.0,87186.0,0.32681421]
[1740508318877,0.172042,87188.0,87186.0,0.32681421]
[1740508319103,0.3,87197.0,87186.0,0.32681421]
[1740508319302,0.17204,87190.0,87187.0,0.03268142]
[1740508319504,0.172042,87188.0,87187.0,0.03268142]
[1740508319913,0.3,87204.0,87187.0,0.03268142]
[1740508320112,0.3,87210.0,87187.0,0.03268142]
[1740508320350,0.3,87210.0,87186.0,0.32681421]
[1740508320351,0.02695091,87212.0,87188.0,0.03040811]
[1740508320607,0.02695091,87212.0,87188.0,0.03201365]
[1740508320817,0.00440798,87212.0,87206.0,0.09182789]
[1740508320992,0.0016952,87227.0,87208.0,0.01454085]
[1740508321196,0.0016952,87227.0,87218.0,0.09182789]
[1740508321370,0.0016952,87227.0,87219.0,0.00918279]
[1740508321610,0.0016952,87227.0,87226.0,0.168967]
[1740508321766,0.0016952,87227.0,87226.0,1.16454372]
[1740508321969,0.0016952,87227.0,87226.0,0.99397227]
[1740508322228,0.0016952,87227.0,87226.0,1.16593927]
[1740508322384,0.0016952,87227.0,87226.0,1.27979623]
[1740508322587,0.0016952,87227.0,87226.0,1.10782923]
[1740508322804,0.0016952,87227.0,87226.0,1.27979623]
[1740508323006,0.0016952,87227.0,87226.0,1.09328838]
[1740508323406,0.1736602,87227.0,87226.0,1.09328838]
[1740508323613,0.0016952,87227.0,87226.0,0.31763142]
[1740508323810,0.17198,87219.0,87218.0,0.002]
[1740508324046,0.172,87209.0,87208.0,0.31763142]
[1740508324192,0.3,87219.0,87199.0,0.31763142]
[1740508324415,0.172007,87206.0,87200.0,0.09467914]
[1740508324616,0.172007,87206.0,87200.0,0.41231056]
[1740508325009,0.3,87211.0,87200.0,0.41231056]
[1740508325214,0.172,87209.0,87200.0,0.41231056]
[1740508325410,0.001,87219.0,87200.0,0.41231056]
[1740508325673,0.3,87215.0,87201.0,0.10414706]
[1740508325819,0.3,87217.0,87201.0,0.10414706]
[1740508326216,0.32263691,87219.0,87201.0,0.10414706]
[1740508326444,0.172014,87202.0,87201.0,0.10414706]
[1740508326884,0.229349,87204.0,87201.0,0.10414706]
[1740508327089,0.172014,87202.0,87200.0,0.32063142]
[1740508327325,0.172016,87201.0,87200.0,0.003]
[1740508327543,0.229349,87204.0,87200.0,0.0008478]
[1740508327738,0.172016,87201.0,87200.0,0.0008478]
[1740508327943,0.001,87202.0,87200.0,0.0008478]
[1740508328328,0.172003,87208.0,87200.0,0.0008478]
[1740508328554,0.22933,87211.0,87200.0,0.0008478]
[1740508328753,0.172016,87201.0,87200.0,0.0068478]
[1740508328883,0.3,87219.0,87200.0,0.0068478]
[1740508329093,0.172016,87201.0,87200.0,0.0068478]
[1740508329925,0.172016,87201.0,87200.0,0.0008478]
[1740508330149,0.172016,87201.0,87200.0,0.0058478]
[1740508330351,0.2580209,87201.0,87200.0,0.0058478]
[1740508330545,0.472016,87201.0,87200.0,0.0058478]
[1740508330747,0.229344,87205.0,87167.0,0.31763142]
[1740508330748,0.172081,87168.0,87167.0,0.31763142]
[1740508331107,0.00947456,87201.0,87167.0,0.31763142]
[1740508331534,0.172073,87172.0,87167.0,0.31763142]
[1740508331740,0.3,87198.0,87167.0,0.31763142]
[1740508331985,0.00847456,87201.0,87169.0,0.229439]
[1740508332190,0.05907661,87262.0,87174.0,0.229424]
[1740508332191,0.172038,87190.0,87174.0,0.229424]
[1740508332402,0.363788,87212.0,87182.0,0.229403]
[1740508332533,0.172027,87196.0,87183.0,0.0337199]
[1740508332741,0.02223533,87219.0,87185.0,0.1228]
[1740508332946,0.07899052,87238.0,87193.0,0.172031]
[1740508333208,0.22933,87211.0,87194.0,0.34561399]
[1740508333440,0.172006,87206.0,87195.0,0.172028]
[1740508333567,0.172007,87206.0,87194.0,0.51603857]
[1740508333770,0.172007,87206.0,87196.0,0.172026]
[1740508334112,0.172008,87205.0,87195.0,0.22363186]
[1740508334320,0.172006,87207.0,87196.0,0.171024]
[1740508334671,0.02252281,87219.0,87197.0,0.31763142]
[1740508334801,0.02252281,87219.0,87198.0,0.03956124]
[1740508335003,0.229335,87209.0,87199.0,0.31763142]
[1740508335228,0.17201,87204.0,87199.0,0.31763142]
[1740508335431,0.3,87226.0,87199.0,0.31763142]
[1740508335656,0.172018,87200.0,87199.0,0.31763142]
[1740508337027,0.22935,87203.0,87199.0,0.31806592]
[1740508337381,0.172018,87200.0,87199.0,0.32006592]
[1740508337550,0.172018,87200.0,87199.0,0.31806592]
[1740508337711,0.472018,87200.0,87199.0,5e-07]
[1740508337909,0.172091,87163.0,87162.0,0.31763142]
[1740508338155,0.3,87198.0,87161.0,0.0789]
[1740508338156,0.229452,87165.0,87161.0,0.00042419]
[1740508338330,0.172093,87162.0,87161.0,0.00042419]
[1740508339303,0.172138,87139.0,87138.0,0.31763142]
[1740508339436,0.172138,87139.0,87138.0,0.31805603]
[1740508339660,0.0213294,87139.0,87138.0,0.34986163]
[1740508340465,0.0223294,87139.0,87138.0,0.52400163]
[1740508340667,0.0223294,87139.0,87138.0,0.53854248]
[1740508341072,0.001,87139.0,87138.0,0.53854248]
[1740508341278,0.02178421,87163.0,87146.0,0.172123]
[1740508341477,0.229441,87169.0,87147.0,0.33484372]
[1740508341844,0.229441,87169.0,87138.0,0.00042461]
[1740508341845,0.02169375,87169.0,87138.0,0.00042461]
[1740508341971,0.172138,87139.0,87138.0,0.00042461]
[1740508342945,0.172138,87139.0,87138.0,0.00542461]
[1740508342946,0.001,87139.0,87138.0,0.00542461]
[1740508343122,0.02233796,87139.0,87138.0,0.00542461]
[1740508343434,0.19347596,87139.0,87138.0,0.00042461]
[1740508343839,0.19347596,87139.0,87138.0,0.00242461]
[1740508344242,0.19347596,87139.0,87138.0,0.00042461]
[1740508344603,0.19347596,87139.0,87138.0,0.00542461]
[1740508345971,0.19347596,87139.0,87138.0,0.00042461]
[1740508346373,0.19347596,87139.0,87138.0,0.00242461]
[1740508347009,0.19347596,87139.0,87138.0,0.00042461]
[1740508347440,0.19347596,87139.0,87138.0,0.00442461]
[1740508347815,0.19347596,87139.0,87138.0,0.00042461]
[1740508348230,0.172138,87139.0,87138.0,0.00042461]
[1740508349926,0.172138,87139.0,87138.0,0.00242461]
[1740508350326,0.172138,87139.0,87138.0,0.00042461]
[1740508350961,0.49344288,87139.0,87138.0,0.00042461]
[1740508352229,0.49344288,87139.0,87138.0,0.00127261]
[1740508352825,0.49344288,87139.0,87138.0,6.1e-07]
[1740508353188,0.49444288,87139.0,87138.0,6.1e-07]
[1740508353655,0.49344288,87139.0,87138.0,6.1e-07]
[1740508353869,0.49432788,87139.0,87138.0,6.1e-07]
[1740508354468,0.471023,87139.0,87138.0,6.1e-07]
[1740508356320,0.472023,87139.0,87138.0,6.1e-07]
[1740508357827,0.471023,87139.0,87138.0,6.1e-07]
[1740508359205,0.472023,87139.0,87138.0,6.1e-07]
[1740508359809,0.471023,87139.0,87138.0,6.1e-07]
[1740508360008,0.001,87139.0,87138.0,6.1e-07]
[1740508360210,0.173138,87139.0,87138.0,6.1e-07]
[1740508360412,0.172138,87139.0,87138.0,6.1e-07]
[1740508360912,0.473138,87139.0,87138.0,6.1e-07]
[1740508362085,0.472138,87139.0,87138.0,6.1e-07]
[1740508362550,0.472138,87139.0,87138.0,0.00100061]
[1740508362890,0.472138,87139.0,87138.0,6.1e-07]
[1740508363413,0.472138,87139.0,87138.0,0.00400061]
[1740508363817,0.4738352,87139.0,87138.0,6.1e-07]
[1740508364035,0.4738352,87139.0,87138.0,0.00400061]
[1740508365384,0.4738352,87139.0,87138.0,6.1e-07]
[1740508365783,0.4738352,87139.0,87138.0,0.00500061]
[1740508366186,0.0016972,87139.0,87138.0,0.39403203]